fUST/lending_fUST_20260222
["ID","MTS","AMOUNT","RATE_DAILY","PERIOD"]
[406335406,1771761043700,-250.0,0.00017989,2]
[406335408,1771761043709,-500.0,0.00017989,2]
[406335410,1771761043718,-225.18697532,0.00017989,2]
[406335412,1771761043727,-250.0,0.00017989,2]
[406335414,1771761043736,-500.0,0.00017989,2]
[406335416,1771761043746,-233.51889341,0.00017989,2]
[406335418,1771761043755,-250.0,0.00017989,2]
[406335420,1771761043764,-242.15909246,0.00017989,2]
[406335422,1771761043773,-250.0,0.00017989,2]
[406335424,1771761043782,-293.58484015,0.00017989,2]
[406335426,1771761043791,-251.11897888,0.00017989,2]
[406335428,1771761043800,-260.4103811,0.00017989,2]
[406335430,1771761043809,-270.0455652,0.00017989,2]
[406335432,1771761043819,-280.03725112,0.00017989,2]
[406335434,1771761043827,-290.39862941,0.00017989,2]
[406335436,1771761043836,-301.1433787,0.00017989,2]
[406335438,1771761043845,-500.0,0.00017989,2]
[406335440,1771761043854,-500.0,0.00017989,2]
[406335442,1771761043863,-500.0,0.00017989,2]
[406335444,1771761043872,-594.01389395,0.00017989,2]
[406335446,1771761043881,-8904.74372505,0.00018,2]
[406335448,1771761043890,-615025.72983544,0.00018,2]
[406335450,1771761043899,-89962.15110119,0.00018,2]
[406335452,1771761043908,-151.0,0.00018,2]
[406335454,1771761043917,-151.0,0.00018,2]
[406335456,1771761043926,-151.0,0.00018,2]
[406335458,1771761043935,-36010.77502139,0.00018,2]
[406335460,1771761043944,-487.0,0.00018,2]
[406335462,1771761043953,-487.0,0.00018,2]
[406335464,1771761043962,-487.0,0.00018,2]
[406335466,1771761043971,-938.17,0.00018,2]
[406335468,1771761043981,-487.0,0.00018,2]
[406335470,1771761043990,-487.0,0.00018,2]
[406335473,1771761044002,-487.0,0.00018,2]
[406335475,1771761044012,-487.0,0.00018,2]
[406335477,1771761044020,-487.0,0.00018,2]
[406335479,1771761044029,-487.0,0.00018,2]
[406335481,1771761044039,-487.0,0.00018,2]
[406335483,1771761044047,-487.0,0.00018,2]
[406335485,1771761044057,-487.0,0.00018,2]
[406335487,1771761044066,-929.69,0.00018,2]
[406335489,1771761044075,-686.63,0.00018,2]
[406335491,1771761044084,-823.0,0.00018028,2]
[406335493,1771761044094,-523.91302111,0.00018174,2]
[406335495,1771761044103,-231.0,0.00018187,2]
[406335497,1771761044113,-3375.7683976,0.00018401,2]
[406335499,1771761044122,-433.62,0.000191,2]
[406335501,1771761044130,-156.0,0.00019178,2]
[406335503,1771761044139,-159.97,0.000192,2]
[406335505,1771761044148,-1019.94,0.000193,2]
[406335507,1771761044157,-168.0,0.00019321,2]
[406335509,1771761044166,-160.98,0.00019391,2]
[406335511,1771761044176,-1379.0,0.00019391,2]
[406335513,1771761044187,-181.0,0.00019391,2]
[406335515,1771761044198,-168.0,0.00019463,2]
[406335517,1771761044207,-1028.0,0.00019757,2]
[406335519,1771761044216,-160.43,0.0002,2]
[406335521,1771761044228,-2000.0,0.0002,7]
[406335523,1771761044237,-168.0,0.00020127,2]
[406335525,1771761044247,-168.0,0.0002029,2]
[406335527,1771761044257,-168.0,0.00020332,2]
[406335528,1771761044267,-156.189,0.00020474,2]
[406335530,1771761044276,-168.0,0.00020799,2]
[406335532,1771761044285,-168.0,0.00021042,2]
[406335534,1771761044295,-168.0,0.00021043,2]
[406335536,1771761044304,-168.0,0.0002106,2]
[406335538,1771761044314,-501.118,0.00021865,2]
[406335540,1771761044322,-402.0,0.00021902,2]
[406335542,1771761044332,-151.0,0.00021918,2]
[406335544,1771761044342,-151.0,0.00021918,2]
[406335547,1771761044352,-151.0,0.00021918,2]
[406335548,1771761044361,-151.0,0.00021918,2]
[406335551,1771761044371,-243.623892,0.00021918,2]
[406335552,1771761044380,-205.02,0.00021945,2]
[406335554,1771761044390,-32938.08,0.00022,2]
[406335557,1771761044400,-47661.27154965,0.00022041,2]
[406335559,1771761044410,-168.0,0.00022392,2]
[406335561,1771761044419,-281.0,0.000227,2]
[406335563,1771761044428,-49232.80537699,0.0002277,2]
[406335565,1771761044438,-47377.08401637,0.00022898,2]
[406335567,1771761044448,-159.81,0.000229,7]
[406335569,1771761044457,-168.0,0.00022952,2]
[406335571,1771761044466,-744.00654836,0.00022965,2]
[406335573,1771761044475,-835280.97432197,0.00023,2]
[406335707,1771761045843,-170.0,0.00020459,2]
[406335709,1771761045853,-11320.74,0.00023,2]
[406335725,1771761046004,-7810.59046342,0.00023,2]
[406336231,1771761326042,329.33,0.00011,2]
[406336233,1771761607983,152.95,6.5e-05,2]
[406336234,1771761608967,152.95,6.5e-05,2]
[406336235,1771761609905,152.95,6.5e-05,2]
[406336236,1771761610642,152.95,6.6e-05,2]
[406336237,1771761611755,152.95,6.6e-05,2]
[406336238,1771761612530,152.95,6.6e-05,2]
[406336239,1771761613454,152.95,6.6e-05,2]
[406336240,1771761614019,152.95,6.6e-05,2]
[406336241,1771761614787,152.95,6.6e-05,2]
[406336242,1771761615363,152.95,6.7e-05,2]
[406336243,1771761616165,152.95,6.7e-05,2]
[406336244,1771761616807,152.95,6.7e-05,2]
[406336245,1771761617903,152.95,6.7e-05,2]
[406336246,1771761619422,152.95,6.7e-05,2]
[406336247,1771761620150,152.95,6.7e-05,2]
[406336248,1771761621115,152.95,6.8e-05,2]
[406336249,1771761622450,152.95,6.8e-05,2]
[406336250,1771761623171,152.95,6.8e-05,2]
[406336251,1771761624568,152.95,6.8e-05,2]
[406336252,1771761626978,152.95,6.8e-05,2]
[406336253,1771761627721,152.95,6.8e-05,2]
[406336254,1771761628466,152.95,6.9e-05,2]
[406336255,1771761629286,152.95,6.9e-05,2]
[406336256,1771761630374,152.95,6.9e-05,2]
[406336257,1771761681943,-1543.07500963,0.00013426,2]
[406336269,1771762231909,-640.63966257,0.00013027,2]
[406336326,1771762238078,-4359.36033743,0.00013027,2]
[406336327,1771762238088,-91.99622859,0.00013699,2]
[406336328,1771762238100,-75.09758429,0.00013699,2]
[406336329,1771762238111,-500.0,0.00013699,2]
[406336330,1771762238121,-378.71647832,0.00014247,2]
[406336331,1771762238132,-269.79870282,0.00016984,2]
[406336332,1771762238141,-209.40437684,0.00017815,2]
[406336333,1771762238151,-217.15233878,0.00017815,2]
[406336334,1771762238161,-225.18697532,0.00017815,2]
[406336336,1771762238170,-233.51889341,0.00017815,2]
[406336338,1771762238179,-260.4103811,0.00017815,2]
[406336340,1771762238188,-270.0455652,0.00017815,2]
[406336342,1771762238197,-280.03725112,0.00017815,2]
[406336343,1771762238207,-290.39862941,0.00017815,2]
[406336346,1771762238218,-301.1433787,0.00017815,2]
[406336348,1771762238227,-155.0747018,0.00018706,2]
[406336349,1771762238237,-165.0,0.00018706,2]
[406336351,1771762238247,-226.99512138,0.00018706,2]
[406336353,1771762238256,-150.186,0.00019901,2]
[406336355,1771762238266,-150.192,0.00019901,2]
[406336357,1771762238275,-170.0,0.00020129,2]
[406336358,1771762238285,-187.61,0.00020238,2]
[406336359,1771762238294,-170.0,0.00020775,2]
[406336360,1771762238307,-300.0,0.00021389,2]
[406336361,1771762238317,-420.0,0.0002172,2]
[406336362,1771762238326,-168.0,0.00022416,2]
[406336363,1771762238336,-166.99644198,0.0002254,2]
[406336364,1771762238346,-744.00654836,0.00022727,2]
[406336365,1771762238355,-800.0,0.00022804,2]
[406336366,1771762238364,-800.0,0.00022886,2]
[406336367,1771762238374,-3404.36609702,0.00022934,2]
[406336368,1771762238383,-289.07759724,0.00022934,2]
[406336369,1771762238393,-800.0,0.0002297,2]
[406336370,1771762238403,-734.49377055,0.00022992,2]
[406336371,1771762238412,-500.0,0.00022999,2]
[406336372,1771762238422,-293.68751068,0.00022999,2]
[406336373,1771762238431,-500.0,0.00022999,2]
[406336374,1771762238441,-290.18574946,0.00022999,2]
[406336375,1771762238450,-56671.4549029,0.00023,2]
[406336376,1771762238460,-168.0,0.00023034,2]
[406336377,1771762238470,-2675.52771878,0.00023085,2]
[406336378,1771762238480,-168.0,0.00023205,2]
[406336379,1771762238489,-168.0,0.00023307,2]
[406336380,1771762238499,-338.21776612,0.00023333,2]
[406336381,1771762238509,-168.0,0.00023334,2]
[406336382,1771762238518,-289.07759724,0.00023417,2]
[406336383,1771762238527,-168.0,0.00023428,2]
[406336384,1771762238537,-600.0,0.00023459,10]
[406336385,1771762238546,-168.0,0.00023471,2]
[406336386,1771762238555,-231.05842259,0.00023652,2]
[406336387,1771762238564,-168.0,0.00023687,2]
[406336388,1771762238573,-168.0,0.00023822,2]
[406336389,1771762238583,-168.0,0.00023881,2]
[406336390,1771762238592,-9690.41452777,0.000239,2]
[406336391,1771762238602,-117965.85284877,0.00024,2]
[406336443,1771762264990,-5000.0,0.00023661,2]
[406336444,1771762265000,-289.07759724,0.000239,2]
[406336445,1771762265009,-2882034.14715123,0.00024,2]
[406336446,1771762265019,-1019.93,0.00024,2]
[406336447,1771762265028,-159.97,0.00024,14]
[406336448,1771762265038,-159.82,0.00024,7]
[406336449,1771762265048,-29644.27,0.00024,2]
[406336450,1771762265058,-487.0,0.00024,2]
[406336451,1771762265068,-487.0,0.00024,2]
[406336452,1771762265077,-487.0,0.00024,2]
[406336453,1771762265086,-487.0,0.00024,2]
[406336454,1771762265184,-487.0,0.00024,2]
[406336455,1771762265193,-487.0,0.00024,2]
[406336456,1771762265203,-487.0,0.00024,2]
[406336457,1771762265212,-487.0,0.00024,2]
[406336458,1771762265221,-487.0,0.00024,2]
[406336459,1771762265230,-500.93,0.00024,2]
[406336460,1771762265239,-168.0,0.0002401,2]
[406336461,1771762265248,-852.02,0.00024164,7]
[406336462,1771762265257,-3404.36609696,0.00024421,2]
[406336463,1771762265267,-500.0,0.00024658,2]
[406336464,1771762265276,-500.0,0.00024658,2]
[406336465,1771762265285,-500.0,0.00024658,2]
[406336466,1771762265294,-500.0,0.00024658,2]
[406336467,1771762265303,-500.0,0.00024658,2]
[406336468,1771762265312,-500.0,0.00024658,2]
[406336469,1771762265321,-500.0,0.00024658,2]
[406336470,1771762265331,-500.0,0.00024658,2]
[406336471,1771762265340,-500.0,0.00024658,2]
[406336472,1771762265349,-500.0,0.00024658,2]
[406336473,1771762265358,-500.0,0.00024658,2]
[406336474,1771762265368,-500.0,0.00024658,2]
[406336475,1771762265377,-500.0,0.00024658,2]
[406336476,1771762265387,-500.0,0.00024658,2]
[406336477,1771762265396,-500.0,0.00024658,2]
[406336478,1771762265406,-500.0,0.00024658,2]
[406336479,1771762265415,-500.0,0.00024658,2]
[406336480,1771762265424,-500.0,0.00024658,2]
[406336481,1771762265433,-500.0,0.00024658,2]
[406336482,1771762265442,-500.0,0.00024658,2]
[406336483,1771762265452,-500.0,0.00024658,2]
[406336484,1771762265461,-500.0,0.00024658,2]
[406336485,1771762265471,-500.0,0.00024658,2]
[406336486,1771762265480,-500.0,0.00024658,2]
[406336487,1771762265489,-500.0,0.00024658,2]
[406336488,1771762265499,-500.0,0.00024658,2]
[406336489,1771762265508,-500.0,0.00024658,2]
[406336490,1771762265517,-500.0,0.00024658,2]
[406336491,1771762265527,-500.0,0.00024658,2]
[406336492,1771762265536,-500.0,0.00024658,2]
[406336493,1771762265545,-500.0,0.00024658,2]
[406336494,1771762265555,-500.0,0.00024658,2]
[406336495,1771762265564,-500.0,0.00024658,2]
[406336496,1771762265573,-500.0,0.00024658,2]
[406336497,1771762265583,-500.0,0.00024658,2]
[406336498,1771762265592,-500.0,0.00024658,2]
[406336499,1771762265602,-500.0,0.00024658,2]
[406336500,1771762265612,-500.0,0.00024658,2]
[406336501,1771762265622,-500.0,0.00024658,2]
[406336502,1771762265631,-500.0,0.00024658,2]
[406336503,1771762265642,-500.0,0.00024658,2]
[406336504,1771762265651,-500.0,0.00024658,2]
[406336505,1771762265660,-500.0,0.00024658,2]
[406336506,1771762265670,-500.0,0.00024658,2]
[406336507,1771762265679,-500.0,0.00024658,2]
[406336508,1771762265688,-384.30742269,0.00024658,2]
[406336509,1771762265697,-500.0,0.00024658,2]
[406336510,1771762265706,-500.0,0.00024658,2]
[406336511,1771762265716,-500.0,0.00024658,2]
[406336512,1771762265725,-500.0,0.00024658,2]
[406336513,1771762265734,-500.0,0.00024658,2]
[406336514,1771762265744,-500.0,0.00024658,2]
[406336515,1771762265753,-500.0,0.00024658,2]
[406336516,1771762265762,-500.0,0.00024658,2]
[406336517,1771762265772,-500.0,0.00024658,2]
[406336518,1771762265786,-500.0,0.00024658,2]
[406336519,1771762265795,-550.0,0.00024658,2]
[406336520,1771762265804,-519120.303737,0.000249,2]
[406336521,1771762265813,-1177.283249,0.0002498,5]
[406336522,1771762265825,-1000.0,0.00025,5]
[406336523,1771762265834,-995.0,0.0002516,10]
[406336524,1771762265843,-522.0,0.0002549,10]
[406336525,1771762265854,-720.0,0.00025805,10]
[406336526,1771762265863,-3404.36609696,0.00025908,2]
[406336527,1771762265872,-317.88056987,0.0002661,2]
[406336528,1771762265881,-500.0,0.00026727,7]
[406336529,1771762265894,-500.0,0.00026811,7]
[406336530,1771762265904,-500.0,0.00026892,7]
[406336531,1771762265914,-500.0,0.00026955,7]
[406336532,1771762265923,-500.0,0.00027035,7]
[406336533,1771762265933,-500.0,0.00027295,7]
[406336534,1771762265943,-174.54733649,0.0002731,14]
[406336535,1771762265952,-293.85068442,0.00027355,7]
[406336536,1771762265961,-3404.36609696,0.00027395,2]
[406336537,1771762265970,-150.0,0.00027397,5]
[406336538,1771762265979,-500.0,0.00027653,7]
[406336539,1771762265989,-29644.27,0.000277,2]
[406336540,1771762265998,-500.0,0.00027854,7]
[406336541,1771762266007,-1019.93,0.000279,2]
[406336542,1771762266016,-500.0,0.0002792,7]
[406336543,1771762266025,-250.0,0.00027945,5]
[406336544,1771762266034,-500.0,0.00027995,7]
[406336545,1771762266043,-744.00654836,0.00028,3]
[406336546,1771762266052,-744.00654836,0.00028,3]
[406336547,1771762266062,-159.97,0.00028,14]
[406336548,1771762266081,-150.0,0.00028,5]
[406336549,1771762266090,-500.0,0.00028038,7]
[406336550,1771762266099,-500.0,0.00028069,7]
[406336551,1771762266109,-500.0,0.00028177,7]
[406336552,1771762266118,-500.0,0.00028273,7]
[406336553,1771762266128,-864.0,0.00028385,30]
[406336554,1771762266138,-500.0,0.00028397,7]
[406336555,1771762266148,-500.0,0.00028401,7]
[406336556,1771762266157,-500.0,0.00028418,7]
[406336557,1771762266166,-350.0,0.00028493,5]
[406336558,1771762266175,-500.0,0.00028522,7]
[406336559,1771762266185,-744.00654836,0.00028522,7]
[406336560,1771762266194,-250.0,0.00028548,5]
[406336561,1771762266203,-500.0,0.00028594,7]
[406336562,1771762266212,-179.9460162,0.00028633,2]
[406336563,1771762266222,-500.0,0.00028785,7]
[406336564,1771762266239,-50994.27084125,0.00028806,2]
[406336565,1771762266258,-500.0,0.00028877,7]
[406336566,1771762266271,-3404.36609696,0.00028883,2]
[406336567,1771762266279,-895.78856492,0.00029,2]
[406336568,1771762266289,-450.0,0.00029041,5]
[406336569,1771762266299,-350.0,0.00029096,5]
[406336570,1771762266308,-500.0,0.0002912,7]
[406336571,1771762266317,-501.09956035,0.00029123,7]
[406336572,1771762266327,-500.0,0.00029149,7]
[406336573,1771762266335,-500.0,0.0002917,7]
[406336574,1771762266344,-500.0,0.00029183,7]
[406336575,1771762266353,-500.0,0.00029213,7]
[406336576,1771762266363,-190.0,0.00029326,7]
[406336577,1771762266372,-29644.27,0.000294,2]
[406336578,1771762266381,-817805.9631,0.00029444,2]
[406336579,1771762266392,-315.184341,0.00029444,7]
[406336580,1771762266401,-315.184341,0.00029444,7]
[406336581,1771762266410,-315.184341,0.00029444,7]
[406336582,1771762266419,-315.184341,0.00029444,7]
[406336583,1771762266428,-151.0,0.00029444,7]
[406336584,1771762266437,-151.0,0.00029444,7]
[406336585,1771762266446,-236.89019,0.00029444,7]
[406336586,1771762266454,-714.0,0.000295,3]
[406336587,1771762266463,-550.0,0.00029589,5]
[406336588,1771762266472,-200.0,0.00029644,5]
[406336589,1771762266481,-931.96863343,0.00029682,7]
[406336590,1771762266490,-513.12039686,0.00029722,7]
[406336591,1771762266499,-315.184341,0.00029734,7]
[406336592,1771762266509,-315.184341,0.00029734,7]
[406336593,1771762266518,-315.184341,0.00029734,7]
[406336594,1771762266527,-315.184341,0.00029734,7]
[406336595,1771762266536,-151.0,0.00029734,7]
[406336596,1771762266545,-151.0,0.00029734,7]
[406336597,1771762266554,-413734.96583552,0.00029734,2]
[406336598,1771762266564,-2000.0,0.00029859,7]
[406336599,1771762266573,-568.34,0.00029984,2]
[406336600,1771762266582,-366.93,0.0003,2]
[406336601,1771762266591,-167.0,0.0003,5]
[406336602,1771762266601,-1019.93,0.000301,2]
[406336603,1771762266610,-608.86780099,0.00030136,120]
[406336604,1771762266619,-452.6765125,0.00030137,5]
[406336605,1771762266629,-2000.0,0.00030137,2]
[406336606,1771762266639,-2000.0,0.00030137,2]
[406336607,1771762266648,-2000.0,0.00030137,2]
[406336608,1771762266657,-2000.0,0.00030137,2]
[406336609,1771762266666,-2000.0,0.00030137,2]
[406336610,1771762266675,-2000.0,0.00030137,2]
[406336611,1771762266685,-2000.0,0.00030137,2]
[406336612,1771762266694,-2000.0,0.00030137,2]
[406336613,1771762266703,-2000.0,0.00030137,2]
[406336614,1771762266712,-2000.0,0.00030137,2]
[406336615,1771762266721,-2000.0,0.00030137,2]
[406336616,1771762266731,-2000.0,0.00030137,2]
[406336617,1771762266740,-2000.0,0.00030137,2]
[406336618,1771762266749,-2000.0,0.00030137,2]
[406336619,1771762266758,-2000.0,0.00030137,2]
[406336620,1771762266767,-2000.0,0.00030137,2]
[406336621,1771762266779,-378.89,0.00030167,2]
[406336622,1771762266788,-3404.36609696,0.0003037,2]
[406336623,1771762266797,-159.97,0.000305,14]
[406336624,1771762266806,-714.0,0.00030766,3]
[406336625,1771762266817,-707.0,0.00030766,3]
[406336626,1771762266826,-201.71023041,0.00030959,14]
[406336627,1771762266835,-342.0,0.00031,15]
[406336628,1771762266845,-1000.0,0.00031224,30]
[406336629,1771762266856,-1000.0,0.00031233,5]
[406336630,1771762266865,-38000.0,0.00031287,10]
[406336631,1771762266874,-7356.05705584,0.00031287,10]
[406336632,1771762266884,-315.184341,0.00031287,7]
[406336633,1771762266894,-315.184341,0.00031287,7]
[406336634,1771762266903,-315.184341,0.00031287,7]
[406336635,1771762266913,-315.184341,0.00031287,7]
[406336636,1771762266921,-2607095.84051232,0.00031444,2]
[406336637,1771762267087,-204684.0,0.00031444,2]
[406336638,1771762267127,-2900.16823356,0.00031444,2]
[406336639,1771762440623,2213.98526314,0.000157,120]
[406336643,1771763295451,999.87,0.0001,2]
[406336644,1771763295476,933.84102165,0.0001,2]
[406336645,1771763304027,290.51969526,0.0001,2]
[406336646,1771763314663,1000.0,0.0001,2]
[406336647,1771763321816,643.97913186,0.0001,2]
[406336676,1771763432073,-680.01,0.00015,2]
[406336726,1771763438135,1147.39,0.00014,30]
[406336747,1771763438324,-5000.0,0.0001485,2]
[406336749,1771763438334,-1776.45297041,0.000149,2]
[406336751,1771763438344,-9972.53550392,0.00015,2]
[406336753,1771763438355,-3486.12324191,0.00015,2]
[406336757,1771763438380,-1359.0,0.00015,2]
[406336834,1771763440844,-1173.95140673,0.00015,2]
[406336835,1771763440856,-13687.70247502,0.00015,2]
[406336844,1771763446263,-11619.98032106,0.00015,2]
[406336845,1771763446272,-5669.26417803,0.00015,2]
[406336846,1771763446283,-1040.86637775,0.00015,2]
[406336847,1771763446292,-73.67995003,0.00015,2]
[406336848,1771763480963,-1196.41083329,0.0001485,2]
[406336871,1771764632255,-5000.0,0.00013163,2]
[406336872,1771764632266,-1196.41083329,0.00013296,2]
[406336873,1771764632276,-309.75711979,0.00013296,2]
[406336874,1771764632287,-299.24288021,0.00013296,2]
[406336875,1771764632297,-150.0,0.00013363,2]
[406336876,1771764632307,-229.96211979,0.00014721,2]
[406336877,1771764632318,-23.14123564,0.00014721,2]
[406336878,1771764632328,-150.0,0.00014721,2]
[406336879,1771764632338,-1383.22662504,0.00014894,2]
[406336880,1771764632349,-171.16972413,0.00014894,2]
[406336881,1771764632358,-500.0,0.00014993,2]
[406336882,1771764632368,-500.0,0.00014993,2]
[406336883,1771764632378,-500.0,0.00014993,2]
[406336884,1771764632389,-500.0,0.00014993,2]
[406336885,1771764632398,-500.0,0.00014993,2]
[406336886,1771764632408,-40.26258466,0.00014993,2]
[406336887,1771764632420,-559.73741534,0.00014993,2]
[406336888,1771764632429,-451.77603334,0.00014993,2]
[406336889,1771764632441,-157.47860099,0.00014993,2]
[406336890,1771764632451,-500.0,0.00014993,2]
[406336891,1771764632461,-500.0,0.00014993,2]
[406336892,1771764632471,-500.0,0.00014993,2]
[406336893,1771764632482,-500.0,0.00014993,2]
[406336894,1771764632492,-500.0,0.00014993,2]
[406336895,1771764632502,-500.0,0.00014993,2]
[406336896,1771764632513,-500.0,0.00014993,2]
[406336897,1771764632524,-500.0,0.00014993,2]
[406336898,1771764632535,-500.0,0.00014993,2]
[406336899,1771764632544,-500.0,0.00014993,2]
[406336900,1771764632554,-500.0,0.00014993,2]
[406336901,1771764632563,-500.0,0.00014993,2]
[406336902,1771764632573,-500.0,0.00014993,2]
[406336903,1771764632582,-184.11909898,0.00014993,2]
[406336904,1771764632602,-315.88090102,0.00014993,2]
[406336905,1771764632618,-500.0,0.00014993,2]
[406336906,1771764632634,-500.0,0.00014993,2]
[406336907,1771764632647,-500.0,0.00014993,2]
[406336908,1771764632661,-500.0,0.00014993,2]
[406336909,1771764632674,-500.0,0.00014993,2]
[406336910,1771764632685,-500.0,0.00014993,2]
[406336911,1771764632697,-500.0,0.00014993,2]
[406336912,1771764632712,-500.0,0.00014993,2]
[406336913,1771764632724,-500.0,0.00014993,2]
[406336914,1771764632736,-500.0,0.00014993,2]
[406336915,1771764632748,-500.0,0.00014993,2]
[406336916,1771764632761,-189.58495317,0.00014993,2]
[406336962,1771764638624,-310.41504683,0.00014993,2]
[406336964,1771764638636,-500.0,0.00014993,2]
[406336966,1771764638649,-102.1843136,0.00014993,2]
[406337361,1771764643684,-397.8156864,0.00014993,2]
[406337362,1771764643695,-500.0,0.00014993,2]
[406337363,1771764643706,-500.0,0.00014993,2]
[406337364,1771764643717,-500.0,0.00014993,2]
[406337365,1771764643728,-311.50131629,0.00014993,2]
[406337366,1771764643740,-500.0,0.00014993,2]
[406337367,1771764643750,-311.98851835,0.00014993,2]
[406337368,1771764643899,-188.01148165,0.00014993,2]
[406337369,1771764643909,-500.0,0.00014993,2]
[406337370,1771764643920,-190.08299145,0.00014993,2]
[406337374,1771764646494,-309.91700855,0.00014993,2]
[406337375,1771764646504,-500.0,0.00014993,2]
[406337376,1771764646514,-500.0,0.00014993,2]
[406337377,1771764646524,-500.0,0.00014993,2]
[406337378,1771764646533,-500.0,0.00014993,2]
[406337379,1771764646542,-300.0,0.00014993,2]
[406337380,1771764646552,-300.0,0.00014993,2]
[406337381,1771764646561,-300.0,0.00014993,2]
[406337382,1771764646570,-25814.17894369,0.00014994,2]
[406337383,1771764646580,-500.0,0.00014997,2]
[406337384,1771764646589,-505.48164318,0.00014997,2]
[406337385,1771764646598,-500.0,0.00014999,2]
[406337386,1771764646607,-500.0,0.00014999,2]
[406337387,1771764646616,-78.0812879,0.00015,2]
[406337388,1771764646625,-4004.39729944,0.00015,2]
[406337389,1771764646634,-1022.2176513,0.0001515,2]
[406337390,1771764646643,-523.91302111,0.00015271,2]
[406337391,1771764646653,-177.0,0.00015363,2]
[406337392,1771764646662,-360.38,0.000157,7]
[406337393,1771764646672,-300.0,0.000162,2]
[406337394,1771764646680,-420.0,0.00016409,2]
[406337395,1771764646689,-3200.6642118,0.00016703,2]
[406337396,1771764646699,-614.7006517,0.00017,7]
[406337397,1771764646707,-216.03621638,0.00017363,2]
[406337398,1771764646717,-587.0,0.00017959,2]
[406337399,1771764646727,-500.0,0.00017998,2]
[406337400,1771764646736,-329.66306332,0.00017999,2]
[406337401,1771764646746,-4033.9098409,0.00018,2]
[406337402,1771764646758,-4046.37365013,0.00018,2]
[406337403,1771764646772,-16056.31208669,0.00018,2]
[406337404,1771764646783,-6467.11453019,0.00018,2]
[406337442,1771765832419,-369.11019004,0.000157,10]
[406337616,1771765838629,-1249.96190047,0.000157,10]
[406337618,1771765838639,-2964.22459746,0.00016487,2]
[406337620,1771765838649,-663.0,0.00016654,2]
[406337622,1771765838659,-122.81350207,0.00016721,2]
[406337848,1771765840924,-177.18649793,0.00016721,2]
[406337850,1771765840934,-948.1593931,0.00016722,2]
[406338133,1771765843731,-677.0440932,0.00016822,2]
[406338134,1771765843741,-308.117043,0.00017115,2]
[406338135,1771765843751,-164.12740738,0.00017151,2]
[406338136,1771765843760,-500.0,0.00017312,2]
[406338137,1771765843770,-500.0,0.00017312,2]
[406338139,1771765843779,-605.75289259,0.00017312,2]
[406338141,1771765843789,-397.65856383,0.00017312,2]
[406338153,1771765843892,-2.34143617,0.00017312,2]
[406338155,1771765843901,-423.50014625,0.00017312,2]
[406338157,1771765843912,-4438.3190127,0.00017314,2]
[406338159,1771765843921,-1360.09680548,0.000179,2]
[406338161,1771765843931,-230.76414432,0.00017999,2]
[406338163,1771765843941,-181833.79056962,0.00018,2]
[406338165,1771765843951,-1695.28683771,0.00018,2]
[406338167,1771765843960,-333.26949769,0.00018,2]
[406338169,1771765843969,-3029.16119491,0.00018,2]
[406338171,1771765843979,-420.0,0.00018268,2]
[406338173,1771765843988,-33675.09689892,0.00018464,2]